bitfinex-derivatives/quotes_SOLF0:USTF0_20250831
["timestamp","ask_amount","ask_price","bid_price","bid_amount"]
[1756653151068,92.47325343,204.38,204.35,0.03081318]
[1756653151571,0.13,204.37,204.35,0.03081318]
[1756653151771,92.47325343,204.38,204.35,0.03081318]
[1756653151972,0.13,204.37,204.35,0.03081318]
[1756653152772,92.47325343,204.38,204.35,0.03081318]
[1756653153567,0.13,204.37,204.35,0.03081318]
[1756653153971,92.47325343,204.38,204.35,0.03081318]
[1756653154476,0.13,204.37,204.35,0.03081318]
[1756653154776,92.47325343,204.38,204.35,0.03081318]
[1756653154975,0.13,204.37,204.35,0.03081318]
[1756653155174,92.47325343,204.38,204.35,0.03081318]
[1756653155369,0.13,204.37,204.35,0.03081318]
[1756653156274,92.47325343,204.38,204.28,7.92]
[1756653156573,3.14325343,204.38,204.25,7.92]
[1756653156775,3.14325343,204.38,204.28,7.92]
[1756653158074,3.01325343,204.38,204.28,7.92]
[1756653158276,3.01325343,204.38,204.29,7.73]
[1756653159079,0.15,204.42,204.29,7.73]
[1756653159280,3.54325343,204.42,204.29,7.73]
[1756653159778,0.15,204.42,204.29,7.73]
[1756653159979,3.16325343,204.42,204.31,3.01325343]
[1756653160180,3.16325343,204.42,204.32,7.73]
[1756653160477,0.0308862,204.38,204.32,7.73]
[1756653160778,6.30325343,204.46,204.35,7.73]
[1756653162780,3.01325343,204.43,204.35,7.73]
[1756653163983,328.66,204.54,204.35,7.73]
[1756653164188,3.01325343,204.49,204.37,3.01325343]
[1756653164382,3.01325343,204.49,204.38,7.73]
[1756653165886,3.01325343,204.49,204.42,7.73]
[1756653171495,0.18,204.48,204.42,7.73]
[1756653171694,0.18,204.48,204.41,0.03087275]
[1756653172493,0.18,204.45,204.41,0.03087275]
[1756653172997,0.18,204.45,204.41,7.76087275]
[1756653174598,0.18,204.45,204.41,0.03087275]
[1756653174801,0.18,204.44,204.41,0.03087275]
[1756653175193,0.18,204.42,204.41,0.03087275]
[1756653175503,115.16,204.42,204.41,0.03087275]
[1756653179500,0.18,204.41,204.33,7.73]
[1756653179696,114.98,204.42,204.33,7.73]
[1756653179697,0.18,204.37,204.33,7.73]
[1756653180702,0.18,204.37,204.27,7.73]
[1756653181005,3.01325343,204.33,204.27,7.73]
[1756653181198,15.67325343,204.34,204.27,7.73]
[1756653181398,3.01325343,204.34,204.27,7.73]
[1756653182803,12.84,204.35,204.27,7.73]
[1756653183009,3.01325343,204.34,204.27,7.73]
[1756653183807,0.03081955,204.33,204.27,7.73]
[1756653186307,3.01325343,204.31,204.27,7.73]
[1756653186508,0.03081955,204.33,204.27,7.73]
[1756653186704,3.01325343,204.31,204.22,7.73]
[1756653187606,0.18,204.3,204.22,7.73]
[1756653189206,3.01325343,204.31,204.22,7.73]
[1756653189804,32.61325343,204.31,204.22,7.73]
[1756653190113,3.01325343,204.28,204.22,7.73]
[1756653191909,29.76,204.31,204.22,7.73]
[1756653192202,3.01325343,204.28,204.22,7.73]
[1756653196610,61.47325343,204.29,204.22,7.73]
[1756653196906,3.01325343,204.33,204.22,7.73]
[1756653197106,89.07325343,204.33,204.22,7.73]
[1756653197312,0.16,204.32,204.22,7.73]
[1756653197506,3.01325343,204.3,204.22,7.73]
[1756653202919,3.17325343,204.3,204.22,7.73]
[1756653208218,0.03085304,204.28,204.22,7.73]
[1756653209411,0.16,204.27,204.22,7.73]
[1756653209719,0.16,204.27,204.16,3.86538007]
[1756653209720,3.01325343,204.27,204.17,7.3]
[1756653210418,3.01325343,204.24,204.17,7.3]
[1756653211220,16.53325343,204.26,204.17,7.3]
[1756653212818,17.70325343,204.38,204.17,7.3]
[1756653212819,3.01325343,204.29,204.17,7.3]
[1756653213020,3.01325343,204.29,204.17,10.31325343]
[1756653213223,3.01325343,204.29,204.18,7.3]
[1756653213723,0.16,204.28,204.18,7.3]
[1756653214819,0.16,204.28,204.19,4.34812957]
[1756653215121,0.16,204.28,204.2,4.34812957]
[1756653215321,0.16,204.28,204.21,11.64812957]
[1756653215521,0.16,204.28,204.22,4.34812957]
[1756653215726,3.01325343,204.38,204.17,3.01325343]
[1756653215727,30.27325343,204.3,204.24,7.3]
[1756653216021,3.01325343,204.3,204.26,7.3]
[1756653216222,3.17325343,204.3,204.27,4.35043643]
[1756653216422,0.03084542,204.29,204.28,4.35043643]
[1756653217624,0.03084542,204.29,204.28,11.65043643]
[1756653223226,0.03084542,204.29,204.28,4.35043643]
[1756653224719,0.03084542,204.29,204.28,11.98043643]
[1756653225529,0.03084542,204.29,204.28,12.00654121]
[1756653225732,0.03084542,204.29,204.28,4.37654121]
[1756653226126,0.03084542,204.29,204.28,4.37700407]
[1756653228029,0.19084542,204.29,204.28,4.37700407]
[1756653228230,0.19084542,204.29,204.22,7.63]
[1756653228430,3.01325343,204.26,204.18,7.63]
[1756653228632,17.73325343,204.26,204.18,7.63]
[1756653229031,0.16,204.33,204.19,7.63]
[1756653229230,22.39325343,204.32,204.21,7.63]
[1756653230130,47.66,204.31,204.21,7.63]
[1756653231931,0.16,204.3,204.21,7.63]
[1756653232930,83.32,204.3,204.21,7.63]
[1756653233727,3.01325343,204.28,204.21,7.63]
[1756653233932,3.17325343,204.28,204.21,7.63]
[1756653236529,3.17325343,204.25,204.21,7.63]
[1756653236929,3.01325343,204.25,204.17,4.00978463]
[1756653237128,3.17325343,204.25,204.18,7.63]
[1756653239435,3.01325343,204.22,204.15,7.63]
[1756653240337,3.01325343,204.22,204.16,4.39832598]
[1756653240537,3.17325343,204.22,204.18,7.63]
[1756653240738,0.16,204.21,204.19,4.39832598]
[1756653240934,42.01325343,204.22,204.2,4.39832598]
[1756653241127,125.19325343,204.24,204.21,12.02832598]
[1756653241333,125.19325343,204.24,204.22,4.39832598]
[1756653241534,125.35325343,204.24,204.23,4.39832598]
[1756653242535,125.35325343,204.24,204.18,7.63]
[1756653242730,3.17325343,204.21,204.18,7.63]
[1756653243235,3.01325343,204.21,204.13,7.63]
[1756653244235,3.01325343,204.18,204.12,7.63]
[1756653246941,0.16,204.2,204.12,7.63]
[1756653247244,3.01325343,204.17,204.1,7.63]
[1756653253050,0.16,204.19,204.1,7.63]
[1756653253251,36.95325343,204.17,204.1,7.63]
[1756653253851,37.08325343,204.17,204.1,7.63]
[1756653256252,3.14325343,204.14,204.1,7.63]
[1756653256454,0.13,204.13,204.1,7.63]
[1756653257554,3.01325343,204.15,204.05,7.5]
[1756653257854,35.8,204.15,204.06,7.5]
[1756653258247,38.81325343,204.15,204.06,7.5]
[1756653259658,38.42,204.15,204.06,7.5]
[1756653260046,0.13,204.14,204.06,7.5]
[1756653261852,41.04,204.13,204.06,7.5]
[1756653262659,3.14325343,204.14,204.06,7.5]
[1756653262954,3.01325343,204.14,204.06,7.5]
[1756653263155,7.55325343,204.14,204.06,7.5]
[1756653263354,3.01325343,204.17,204.06,7.5]
[1756653263551,2.94,204.16,204.06,7.5]
[1756653264357,3.01325343,204.17,204.06,7.5]
[1756653264557,4.62,204.16,204.06,7.5]
[1756653265052,8.68,204.16,204.06,7.5]
[1756653267853,8.81,204.16,204.06,7.5]
[1756653268359,12.79,204.16,204.06,7.5]
[1756653268853,16.83,204.16,204.06,7.5]
[1756653269858,0.13,204.16,204.06,7.5]
[1756653270555,0.13,204.2,204.06,10.51325343]
[1756653270859,3.01325343,204.19,204.07,7.5]
[1756653271059,12.97325343,204.19,204.07,7.5]
[1756653271658,0.13,204.18,204.07,7.5]
[1756653272665,13.06,204.2,204.07,7.5]
[1756653272864,13.06,204.2,204.06,7.02303806]
[1756653272865,13.06,204.2,204.1,7.5]
[1756653273765,13.19,204.2,204.1,7.5]
[1756653276261,16.20325343,204.2,204.1,7.5]
[1756653278665,0.17,204.13,204.06,7.32]
[1756653280568,3.01325343,204.14,204.06,7.32]
[1756653281359,3.01325343,204.14,204.07,4.41739627]
[1756653281561,3.01325343,204.14,204.08,11.73739627]
[1756653281759,3.18325343,204.14,204.1,7.32]
[1756653282063,3.01325343,204.14,204.11,4.41739627]
[1756653282260,0.17,204.13,204.12,4.41739627]
[1756653282460,3.01325343,204.14,204.12,4.41739627]
[1756653282660,3.01325343,204.14,204.13,4.41739627]
[1756653282862,3.18325343,204.14,204.13,4.41739627]
[1756653284173,3.01325343,204.14,204.13,4.41739627]
[1756653284368,25.25,204.16,204.13,4.41739627]
[1756653284671,0.17,204.22,204.14,11.73739627]
[1756653284871,0.17,204.19,204.15,11.73739627]
[1756653285073,0.17,204.19,204.16,4.41739627]
[1756653285371,0.17,204.19,204.17,4.41739627]
[1756653285568,0.17,204.19,204.18,4.41739627]
[1756653288871,0.17,204.19,204.18,4.4204896]
[1756653289672,0.17,204.19,204.15,7.32]
[1756653289870,0.17,204.19,204.16,4.42091798]
[1756653290169,0.17,204.19,204.17,4.42091798]
[1756653290467,0.17,204.19,204.18,4.42091798]
[1756653291668,0.65,204.19,204.11,7.32]
[1756653291867,0.17,204.15,204.11,7.32]
[1756653292067,122.02,204.14,204.11,7.32]
[1756653292468,122.02,204.18,204.08,11.32978463]
[1756653292771,122.02,204.18,204.1,7.32]
[1756653293163,122.02,204.18,204.11,7.32]
[1756653294973,3.18325343,204.2,204.11,7.32]
[1756653295470,122.02,204.19,204.11,7.32]
[1756653295673,3.01325343,204.23,204.13,7.32]
[1756653295974,122.02,204.22,204.13,7.32]
[1756653296174,329.43,204.24,204.13,7.32]
[1756653296370,122.02,204.23,204.15,7.32]
[1756653297679,0.17,204.21,204.15,7.32]
[1756653298275,122.0,204.2,204.15,7.32]
[1756653298776,122.0,204.2,204.14,7.32]
[1756653299876,3.01325343,204.21,204.14,7.32]
[1756653300068,122.0,204.2,204.14,7.32]
[1756653300468,125.01325343,204.2,204.14,7.32]
[1756653300778,125.18325343,204.2,204.14,7.32]
[1756653303175,121.98,204.19,204.11,4.00978463]
[1756653303376,121.98,204.19,204.12,7.32]
[1756653303782,121.98,204.19,204.13,4.47918303]
[1756653303982,122.15,204.19,204.15,7.32]
[1756653304178,0.17,204.23,204.17,7.32]
[1756653304384,0.17,204.33,204.22,7.32]
[1756653304582,0.17,204.37,204.26,7.32]
[1756653304782,109.73,204.37,204.28,7.32]
[1756653304983,109.73,204.37,204.3,7.32]
[1756653305189,109.73,204.37,204.31,4.47918303]
[1756653305387,121.98,204.39,204.32,16.44421416]
[1756653305586,121.98,204.39,204.33,9.12421416]
[1756653305886,121.98,204.39,204.35,7.32]
[1756653306081,122.15,204.39,204.36,9.12421416]
[1756653306280,0.17,204.38,204.37,9.12421416]
[1756653306883,0.17,204.4,204.37,9.12421416]
[1756653307188,3.01325343,204.41,204.38,4.47918303]
[1756653307189,122.13,204.39,204.38,4.47918303]
[1756653307585,121.96,204.39,204.38,4.47918303]
[1756653308086,121.96,204.41,204.38,16.65422798]
[1756653308284,121.96,204.41,204.39,4.47918303]
[1756653308482,121.96,204.41,204.4,4.47918303]
[1756653308789,121.96,204.41,204.4,9.09768929]
[1756653309184,121.94,204.44,204.4,9.18531637]
[1756653309383,121.94,204.44,204.41,4.56732615]
[1756653309582,121.94,204.44,204.42,4.56732615]
[1756653309784,121.94,204.44,204.38,7.55]
[1756653309984,121.94,204.44,204.4,7.55]
[1756653310192,121.94,204.44,204.41,12.11187481]
[1756653310486,121.94,204.44,204.42,4.55679927]
[1756653310789,121.94,204.44,204.38,7.55]
[1756653310985,0.13,204.43,204.39,12.10683505]
[1756653311185,0.13,204.43,204.4,4.55683505]
[1756653311487,121.94,204.44,204.41,4.55683505]
[1756653311686,121.94,204.44,204.34,7.55]
[1756653311886,122.07,204.44,204.35,9.15782067]
[1756653312088,122.07,204.44,204.36,9.15782067]
[1756653312285,122.07,204.44,204.37,9.15782067]
[1756653312487,122.07,204.44,204.38,9.15782067]
[1756653312688,121.94,204.44,204.39,4.55365604]
[1756653312885,122.07,204.44,204.4,4.55365604]
[1756653313085,122.07,204.44,204.41,4.55365604]
[1756653313286,122.07,204.44,204.39,7.55]
[1756653313490,122.07,204.44,204.4,4.54884639]
[1756653313692,122.07,204.44,204.41,4.54884639]
[1756653313891,122.07,204.44,204.39,7.55]
[1756653314088,122.07,204.44,204.4,4.54862187]
[1756653314290,122.07,204.44,204.39,7.55]
[1756653314592,122.07,204.44,204.4,4.54603933]
[1756653314793,122.07,204.44,204.39,7.55]
[1756653314992,122.07,204.44,204.4,4.54604036]
[1756653315294,3.14325343,204.43,204.32,7.55]
[1756653315488,3.14325343,204.43,204.34,7.55]
[1756653315687,3.14325343,204.43,204.35,9.13950625]
[1756653315893,3.14325343,204.43,204.36,9.13950625]
[1756653316093,3.14325343,204.43,204.37,4.54454159]
[1756653316293,3.01325343,204.43,204.38,4.54454159]
[1756653316492,0.13,204.42,204.39,4.54454159]
[1756653316694,0.13,204.42,204.35,7.55]
[1756653316888,0.13,204.42,204.36,9.13691388]
[1756653317088,0.13,204.42,204.38,7.55]
[1756653317290,0.13,204.42,204.39,4.54325349]
[1756653317494,0.13,204.42,204.38,7.55]
[1756653317689,122.07,204.44,204.4,7.55]
[1756653317890,121.94,204.44,204.35,7.55]
[1756653318090,121.94,204.44,204.36,9.13228475]
[1756653318294,121.94,204.44,204.37,9.13228475]
[1756653318494,121.94,204.44,204.38,4.5409646]
[1756653318694,121.94,204.44,204.39,4.5409646]
[1756653318894,0.13,204.43,204.4,4.5409646]
[1756653319094,0.13,204.43,204.35,7.55]
[1756653319294,0.13,204.43,204.36,9.12718056]
[1756653319489,0.13,204.43,204.37,4.53842658]
[1756653319693,0.13,204.43,204.39,7.55]
[1756653319893,0.13,204.43,204.4,4.53854228]
[1756653320094,121.86,204.45,204.35,7.55]
[1756653320393,0.13,204.47,204.28,12.48]
[1756653320394,0.13,204.47,204.37,10.56325343]
[1756653320594,121.99,204.47,204.38,12.08759194]
[1756653320793,121.99,204.47,204.39,4.53759194]
[1756653320997,0.13,204.47,204.4,9.12256852]
[1756653321299,0.13,204.51,204.42,7.55]
[1756653321492,0.13,204.51,204.43,9.12256852]
[1756653321692,0.13,204.51,204.44,9.12256852]
[1756653321891,0.13,204.51,204.42,7.55]
[1756653321892,0.0309509,204.49,204.45,4.53759194]
[1756653322089,0.0309509,204.49,204.46,12.08759194]
[1756653322287,0.0309509,204.49,204.47,12.08759194]
[1756653322489,0.0309509,204.49,204.47,7.55]
[1756653322693,0.0309509,204.49,204.36,7.55]
[1756653322889,0.0309509,204.49,204.41,7.55]
[1756653323087,0.13,204.51,204.42,9.10480152]
[1756653323293,3.14325343,204.51,204.44,7.55]
[1756653323487,3.14325343,204.51,204.45,4.52699521]
[1756653323695,3.01325343,204.51,204.46,4.52699521]
[1756653323997,3.14325343,204.51,204.47,4.52699521]
[1756653324197,3.14325343,204.51,204.44,7.55]
[1756653324400,3.14325343,204.51,204.45,4.52557114]
[1756653324697,0.13,204.5,204.46,12.07557114]
[1756653324897,3.01325343,204.51,204.47,4.52557114]
[1756653325098,0.15,204.51,204.41,7.55]
[1756653325393,3.01325343,204.5,204.43,7.55]
[1756653325601,3.01325343,204.5,204.44,4.52493689]
[1756653325789,450.96,204.54,204.45,12.07493689]
[1756653325994,0.15,204.5,204.46,4.52493689]
[1756653326298,121.84,204.49,204.47,4.52493689]
[1756653326501,0.15,204.5,204.48,4.52288961]
[1756653326700,121.82,204.49,204.4,7.55]
[1756653326995,121.82,204.49,204.42,7.55]
[1756653327298,121.82,204.49,204.43,16.67537404]
[1756653327599,121.82,204.49,204.44,9.12537404]
[1756653327799,121.82,204.49,204.46,7.55]
[1756653327991,121.82,204.49,204.47,12.07328033]
[1756653328192,3.01325343,204.52,204.48,4.52328033]
[1756653328500,3.01325343,204.52,204.47,7.55]
[1756653328501,121.82,204.5,204.49,4.52328033]
[1756653329596,121.82,204.52,204.5,7.55]
[1756653329797,121.82,204.52,204.51,4.52328033]
[1756653330500,329.1,204.54,204.42,3.01325343]
[1756653330701,121.8,204.53,204.43,9.12292015]
[1756653330900,121.8,204.53,204.42,3.01325343]
[1756653330901,121.8,204.53,204.45,7.55]
[1756653331104,121.8,204.53,204.47,7.55]
[1756653331294,329.1,204.54,204.48,9.12292015]
[1756653331493,121.8,204.53,204.5,7.55]
[1756653331801,329.1,204.54,204.52,7.55]
[1756653331995,329.1,204.54,204.53,12.07163631]
[1756653332194,329.1,204.54,204.53,4.52163631]
[1756653332404,450.9,204.54,204.53,4.52163631]
[1756653333599,329.1,204.54,204.53,4.52163631]
[1756653333803,450.9,204.54,204.53,4.52163631]
[1756653335301,450.88,204.54,204.53,4.52163631]
[1756653336397,450.88,204.54,204.53,9.11944003]
[1756653337700,450.86,204.54,204.53,4.52163631]
[1756653338104,450.86,204.54,204.53,9.07358368]
[1756653338715,0.14,204.6,204.53,16.46358368]
[1756653339001,121.76,204.59,204.54,9.07358368]
[1756653339204,0.14,204.58,204.55,4.52163631]
[1756653339402,0.14,204.58,204.56,4.52163631]
[1756653339603,0.14,204.58,204.57,4.52163631]
[1756653340404,121.9,204.59,204.57,4.52163631]
[1756653340700,121.9,204.59,204.58,4.52163631]
[1756653341102,121.74,204.59,204.58,4.52163631]
[1756653341297,121.88,204.59,204.58,4.49903356]
[1756653341498,121.88,204.59,204.58,4.49898372]
[1756653342100,0.14,204.59,204.58,4.49898372]
[1756653342304,121.88,204.59,204.58,4.49898372]
[1756653343605,0.14,204.59,204.58,4.49898372]
[1756653343805,121.88,204.59,204.58,4.49898372]
[1756653346005,121.86,204.59,204.58,4.49898372]
[1756653346207,0.14,204.59,204.58,4.49898372]
[1756653346406,121.72,204.59,204.58,4.49898372]
[1756653346803,121.72,204.59,204.58,9.06296926]
[1756653348006,0.03098648,204.61,204.58,9.06296926]
[1756653348209,121.84,204.6,204.59,9.06296926]
[1756653352205,121.84,204.6,204.59,9.04289335]
[1756653352712,121.68,204.6,204.59,9.04289335]
[1756653353106,121.82,204.6,204.59,9.04289335]
[1756653358510,121.82,204.6,204.59,8.90289335]
[1756653359715,121.82,204.6,204.59,4.45959089]
[1756653360519,121.8,204.6,204.59,4.45959089]
[1756653361614,121.8,204.6,204.59,4.44291449]
[1756653362625,125.15325343,204.6,204.48,7.39]
[1756653362828,3.01325343,204.54,204.48,7.39]
[1756653363027,3.01325343,204.54,204.43,4.00978463]
[1756653363028,121.64,204.53,204.44,7.39]
[1756653363222,3.01325343,204.51,204.44,7.39]
[1756653363823,118.62,204.5,204.44,7.39]
[1756653364129,118.65083691,204.5,204.44,7.39]
[1756653364426,0.03083691,204.5,204.44,7.39]
[1756653364925,0.03083691,204.5,204.45,3.76052209]
[1756653365128,0.03083691,204.5,204.47,7.39]
[1756653365925,0.03083691,204.5,204.43,7.39]
[1756653366129,0.03083691,204.5,204.44,3.76392352]
[1756653366330,0.03083691,204.5,204.45,11.15392352]
[1756653366622,0.03083691,204.5,204.39,5.52752532]
[1756653366623,3.01325343,204.49,204.41,7.39]
[1756653366823,113.1,204.48,204.43,7.39]
[1756653367028,113.1,204.48,204.45,7.39]
[1756653367431,113.1,204.48,204.41,7.39]
[1756653373726,0.03085744,204.47,204.41,7.39]
[1756653375034,0.03085744,204.47,204.38,7.54]
[1756653376132,3.01325343,204.46,204.35,110.13882248]
[1756653376339,3.01325343,204.46,204.36,7.54]
[1756653376638,121.64,204.48,204.38,3.01325343]
[1756653376837,121.64,204.51,204.42,7.54]
[1756653377037,328.68,204.52,204.42,7.54]
[1756653377237,121.64,204.51,204.42,7.54]
[1756653377839,450.32,204.52,204.44,3.01325343]
[1756653378138,328.68,204.52,204.45,7.54]
[1756653380533,328.68,204.52,204.41,10.55325343]
[1756653380727,328.68,204.52,204.42,7.54]
[1756653380931,331.69325343,204.52,204.39,4.00978463]
[1756653381134,3.01325343,204.49,204.38,7.54]
[1756653381337,121.64,204.48,204.38,7.54]
[1756653381633,121.64,204.48,204.4,7.54]
[1756653381844,0.03083966,204.46,204.4,7.54]
[1756653383241,0.03083966,204.46,204.43,7.54]
[1756653383740,0.03083966,204.46,204.42,3.01325343]
[1756653383941,0.03083966,204.46,204.43,7.54]
[1756653384138,0.03083966,204.46,204.42,3.01325343]
[1756653384338,0.03083966,204.46,204.43,7.54]
[1756653384844,0.03083966,204.46,204.35,111.65656317]
[1756653384845,0.03,204.45,204.39,10.55325343]
[1756653385042,0.03,204.45,204.39,7.54]
[1756653386740,30.23083966,204.46,204.39,7.54]
[1756653387844,0.03083966,204.46,204.39,7.54]
[1756653388041,0.03083966,204.46,204.4,7.54]
[1756653389840,0.03,204.42,204.32,7.54]
[1756653390044,7.48,204.41,204.32,7.54]
[1756653390646,11.2,204.41,204.32,7.54]
[1756653392342,0.03,204.4,204.32,7.54]
[1756653392646,3.04325343,204.4,204.32,7.54]
[1756653394342,13.76,204.42,204.32,7.54]
[1756653395345,3.01325343,204.4,204.32,7.54]
[1756653395943,0.03,204.36,204.32,7.54]
[1756653396150,0.03,204.36,204.27,7.54]
[1756653398352,3.01325343,204.37,204.27,7.54]
[1756653402150,3.01325343,204.34,204.27,7.54]
[1756653403456,3.01325343,204.33,204.27,7.54]
[1756653404349,3.01325343,204.38,204.27,7.54]
[1756653404554,3.01325343,204.33,204.27,7.54]
[1756653405354,74.72,204.35,204.27,7.54]
[1756653406053,3.01325343,204.33,204.22,4.03646624]
[1756653406257,3.01325343,204.3,204.23,7.37]
[1756653407056,3.01325343,204.27,204.18,7.37]
[1756653409353,3.01325343,204.3,204.18,7.37]
[1756653411860,16.89325343,204.3,204.18,7.37]
[1756653412159,19.29325343,204.3,204.18,7.37]
[1756653414761,3.01325343,204.3,204.18,7.37]
[1756653416659,3.01325343,204.27,204.18,7.37]
[1756653417263,20.16931139,204.45,204.19,7.37]
[1756653417474,3.01,204.38,204.27,7.37]
[1756653417665,3.01,204.38,204.21,4.03646624]
[1756653417666,3.01,204.32,204.21,7.37]
[1756653417860,0.03084892,204.34,204.24,7.37]
[1756653418264,6.02325343,204.36,204.24,7.37]
[1756653418966,3.01,204.35,204.24,7.37]
[1756653419168,3.01325343,204.36,204.24,7.37]
[1756653419369,3.01,204.35,204.24,7.37]
[1756653420270,23.57,204.35,204.24,7.37]
[1756653420566,3.01,204.39,204.27,7.37]
[1756653420769,3.01,204.39,204.16,3.01325343]
[1756653420770,25.26,204.38,204.3,7.37]
[1756653420963,43.29,204.39,204.3,7.37]
[1756653421369,3.01,204.39,204.3,7.37]
[1756653423173,3.01,204.31,204.22,7.37]
[1756653423371,3.01325343,204.29,204.22,7.37]
[1756653423671,6.02325343,204.29,204.22,7.37]
[1756653423970,41.38325343,204.29,204.22,7.37]
[1756653427176,6.02325343,204.29,204.22,7.37]
[1756653427477,34.6,204.31,204.22,7.37]
[1756653428169,3.01325343,204.32,204.22,7.37]
[1756653428569,3.04,204.31,204.22,7.37]
[1756653428774,3.01325343,204.29,204.22,7.37]
[1756653431873,101.65325343,204.29,204.22,7.37]
[1756653432277,3.01325343,204.29,204.22,7.37]
[1756653432479,37.23325343,204.29,204.22,7.37]
[1756653432674,3.01325343,204.23,204.15,7.59]
[1756653432980,3.04,204.22,204.15,7.59]
[1756653433181,8.72,204.21,204.15,7.59]
[1756653433885,3.04,204.22,204.15,7.59]
[1756653434681,3.01325343,204.21,204.15,7.59]
[1756653437079,3.01325343,204.21,204.08,7.59]
[1756653437274,3.01325343,204.15,204.08,7.59]
[1756653437978,39.85325343,204.15,204.08,7.59]
[1756653440086,42.89325343,204.15,204.08,7.59]
[1756653443683,3.04,204.11,204.03,7.59]
[1756653445396,34.74,204.14,204.03,7.59]
[1756653445789,3.05,204.15,204.03,7.59]
[1756653446089,68.32,204.14,204.03,7.59]
[1756653446290,102.17,204.15,204.03,7.59]
[1756653446585,125.97,204.15,204.03,7.59]
[1756653447900,3.05,204.14,204.03,7.59]
[1756653448091,3.05,204.12,204.03,7.59]
[1756653449388,125.91,204.12,204.03,7.59]
[1756653449591,125.95,204.12,204.03,7.59]
[1756653450598,3.05,204.06,203.98,7.59]
[1756653450795,20.17,204.06,203.98,7.59]
[1756653451887,3.05,204.06,203.98,7.59]
[1756653452190,9.09,204.06,203.98,7.59]
[1756653452396,3.01325343,204.03,203.94,7.59]
[1756653452594,3.05,204.04,203.94,7.59]
[1756653454294,3.01325343,204.03,203.94,7.59]
[1756653454690,3.05,204.04,203.94,7.59]
[1756653456598,6.06325343,204.04,203.94,7.59]
[1756653460409,3.01325343,204.01,203.94,7.59]
[1756653466007,3.05,204.04,203.94,7.59]
[1756653466304,3.01325343,204.02,203.94,7.59]
[1756653467610,32.74,204.02,203.94,7.59]
[1756653467803,35.75325343,204.02,203.94,7.59]
[1756653468400,3.06,204.01,203.94,7.59]
[1756653472817,3.01325343,203.99,203.94,7.59]
[1756653473016,3.06,203.98,203.87,7.97]
[1756653474415,3.06,203.98,203.88,7.97]
[1756653476412,3.06,203.98,203.89,7.97]
[1756653477214,3.01325343,203.97,203.89,7.97]
[1756653477713,3.06,203.96,203.89,7.97]
[1756653477916,6.07325343,203.94,203.86,7.97]
[1756653480319,3.06,203.98,203.87,7.97]
[1756653480516,6.07325343,203.98,203.89,12.00253201]
[1756653480712,6.07325343,203.98,203.89,7.97]
[1756653481616,3.01325343,203.96,203.89,7.97]
[1756653482313,3.01325343,203.9,203.82,7.97]
[1756653483117,6.07325343,203.87,203.8,7.97]
[1756653484316,3.06,203.87,203.8,7.97]
[1756653484521,3.01325343,203.88,203.8,7.97]
[1756653487424,32.8,203.89,203.8,7.97]
[1756653487624,3.01325343,203.87,203.8,7.97]
[1756653488721,3.01325343,203.88,203.8,7.97]
[1756653488926,3.01325343,203.9,203.8,7.97]